[Event "Schack-SM 2024: Sverigemastarklassen"]
[Site "Fortnox Arena, Hejaregatan 5, Vaxjo, Sweden"]
[Date "2024.07.03"]
[Round "5.5"]
[White "Ostlund, Joar"]
[Black "Hector, Jonny"]
[Result "0-1"]
[TimeControl "90 minutes for 40 moves + 30 minutes for the rest of the game + 30 seconds per move from move one."]
[WhiteTitle "FM"]
[BlackTitle "GM"]
[WhiteElo "2334"]
[BlackElo "2410"]

1. d4 {[%clk 01:30:57]} {[%emt 00:00:04]} d5 {[%clk 01:30:51]} {[%emt
00:00:08]} 2. c4 {[%clk 01:31:19]} {[%emt 00:00:09]} c6 {[%clk 01:31:15]}
{[%emt 00:00:05]} 3. Nf3 {[%clk 01:31:42]} {[%emt 00:00:08]} Nf6 {[%clk
01:31:35]} {[%emt 00:00:08]} 4. Nc3 {[%clk 01:32:06]} {[%emt 00:00:08]} dxc4
{[%clk 01:31:56]} {[%emt 00:00:09]} 5. a4 {[%clk 01:32:30]} {[%emt 00:00:08]}
Bf5 {[%clk 01:32:17]} {[%emt 00:00:07]} 6. e3 {[%clk 01:32:52]} {[%emt
00:00:09]} e6 {[%clk 01:32:14]} {[%emt 00:00:32]} 7. Bxc4 {[%clk 01:33:14]}
{[%emt 00:00:08]} Bb4 {[%clk 01:31:42]} {[%emt 00:01:01]} 8. O-O {[%clk
01:33:28]} {[%emt 00:00:17]} Nbd7 {[%clk 01:31:11]} {[%emt 00:01:02]} 9. Qe2
{[%clk 01:33:49]} {[%emt 00:00:09]} Bg4 {[%clk 01:27:44]} {[%emt 00:03:55]} 10.
h3 {[%clk 01:34:10]} {[%emt 00:00:11]} Bh5 {[%clk 01:27:35]} {[%emt 00:00:38]}
11. e4 {[%clk 01:29:18]} {[%emt 00:05:23]} Nb6 {[%clk 01:22:01]} {[%emt
00:06:02]} 12. g4 {[%clk 01:25:36]} {[%emt 00:04:12]} Bg6 {[%clk 01:18:04]}
{[%emt 00:04:27]} 13. Bd3 {[%clk 01:24:58]} {[%emt 00:01:10]} a5 {[%clk
01:16:05]} {[%emt 00:02:28]} 14. Rd1 {[%clk 01:13:37]} {[%emt 00:11:51]} Nfd7
{[%clk 01:14:16]} {[%emt 00:02:19]} 15. Bf4 {[%clk 01:03:14]} {[%emt 00:10:54]}
Qe7 {[%clk 01:08:14]} {[%emt 00:06:30]} 16. Bg3 {[%clk 00:56:12]} {[%emt
00:07:33]} h6 {[%clk 01:06:00]} {[%emt 00:02:43]} 17. Bc2 {[%clk 00:44:39]}
{[%emt 00:12:05]} Bh7 {[%clk 01:00:20]} {[%emt 00:06:10]} 18. Na2 {[%clk
00:40:53]} {[%emt 00:04:16]} Bd6 {[%clk 00:57:23]} {[%emt 00:03:26]} 19. Bxd6
{[%clk 00:39:39]} {[%emt 00:01:45]} Qxd6 {[%clk 00:57:48]} {[%emt 00:00:03]} 20.
e5 {[%clk 00:39:44]} {[%emt 00:00:27]} Qe7 {[%clk 00:54:21]} {[%emt 00:03:55]}
21. Bxh7 {[%clk 00:39:54]} {[%emt 00:00:22]} Rxh7 {[%clk 00:54:44]} {[%emt
00:00:07]} 22. Nc3 {[%clk 00:39:07]} {[%emt 00:01:18]} g5 {[%clk 00:52:34]}
{[%emt 00:02:39]} 23. Nd2 {[%clk 00:31:01]} {[%emt 00:08:36]} Nd5 {[%clk
00:48:13]} {[%emt 00:04:51]} 24. Qd3 {[%clk 00:23:55]} {[%emt 00:07:37]} Rh8
{[%clk 00:45:36]} {[%emt 00:03:06]} 25. Nxd5 {[%clk 00:23:12]} {[%emt
00:01:14]} exd5 {[%clk 00:45:05]} {[%emt 00:00:59]} 26. Nf1 {[%clk 00:23:35]}
{[%emt 00:00:08]} Nf8 {[%clk 00:36:17]} {[%emt 00:09:18]} 27. Ng3 {[%clk
00:23:18]} {[%emt 00:00:47]} Ne6 {[%clk 00:34:57]} {[%emt 00:01:49]} 28. Nf5
{[%clk 00:19:23]} {[%emt 00:04:26]} Qc7 {[%clk 00:33:08]} {[%emt 00:02:18]} 29.
Nd6+ {[%clk 00:19:00]} {[%emt 00:00:55]} Kf8 {[%clk 00:32:52]} {[%emt
00:00:46]} 30. Ra3 {[%clk 00:16:08]} {[%emt 00:03:22]} Kg8 {[%clk 00:26:59]}
{[%emt 00:06:21]} 31. Rb3 {[%clk 00:15:30]} {[%emt 00:01:10]} Rb8 {[%clk
00:26:37]} {[%emt 00:00:52]} 32. Qf5 {[%clk 00:14:47]} {[%emt 00:01:13]} Ng7
{[%clk 00:17:02]} {[%emt 00:10:03]} 33. Qf3 {[%clk 00:13:46]} {[%emt 00:01:32]}
Rh7 {[%clk 00:16:06]} {[%emt 00:01:24]} 34. Rc1 {[%clk 00:13:10]} {[%emt
00:01:09]} Ne6 {[%clk 00:14:53]} {[%emt 00:01:41]} 35. Nf5 {[%clk 00:04:59]}
{[%emt 00:08:43]} Rf8 {[%clk 00:11:10]} {[%emt 00:04:12]} 36. Qe3 {[%clk
00:02:00]} {[%emt 00:03:29]} f6 {[%clk 00:08:02]} {[%emt 00:03:37]} 37. exf6
{[%clk 00:01:44]} {[%emt 00:00:47]} Rxf6 {[%clk 00:08:21]} {[%emt 00:00:11]} 38.
Re1 {[%clk 00:01:58]} {[%emt 00:00:16]} Rhf7 {[%clk 00:06:14]} {[%emt
00:02:37]} 39. Qd2 {[%clk 00:01:25]} {[%emt 00:01:04]} Ng7 {[%clk 00:05:12]}
{[%emt 00:01:30]} 40. Rf3 {[%clk 00:00:31]} {[%emt 00:01:26]} Nxf5 {[%clk
00:04:06]} {[%emt 00:01:34]} 41. Re8+ {[%clk 00:16:57]} {[%emt 00:14:05]} Kg7
{[%clk 00:32:51]} {[%emt 00:01:44]} 42. gxf5 {[%clk 00:17:17]} {[%emt
00:00:12]} Rxf5 {[%clk 00:31:27]} {[%emt 00:01:52]} 43. Rxf5 {[%clk 00:12:19]}
{[%emt 00:05:29]} Rxf5 {[%clk 00:31:44]} {[%emt 00:00:12]} 44. Qe1 {[%clk
00:12:11]} {[%emt 00:00:39]} Rf7 {[%clk 00:28:38]} {[%emt 00:03:34]} 45. Re5
{[%clk 00:12:38]} {[%emt 00:00:04]} Qd8 {[%clk 00:17:24]} {[%emt 00:11:44]} 46.
Re6 {[%clk 00:12:10]} {[%emt 00:01:00]} Qc7 {[%clk 00:16:44]} {[%emt 00:01:09]}
47. Re5 {[%clk 00:12:28]} {[%emt 00:00:13]} Qb6 {[%clk 00:13:57]} {[%emt
00:03:16]} 48. Qe3 {[%clk 00:03:15]} {[%emt 00:09:44]} Qd8 {[%clk 00:12:10]}
{[%emt 00:02:16]} 49. Re6 {[%clk 00:03:22]} {[%emt 00:00:24]} Qc7 {[%clk
00:12:28]} {[%emt 00:00:12]} 50. Re5 {[%clk 00:02:31]} {[%emt 00:01:22]} Qd6
{[%clk 00:12:45]} {[%emt 00:00:13]} 51. Qg3 {[%clk 00:01:51]} {[%emt 00:01:10]}
Qg6 {[%clk 00:11:31]} {[%emt 00:01:43]} 52. Kg2 {[%clk 00:01:24]} {[%emt
00:00:57]} Kh7 {[%clk 00:11:09]} {[%emt 00:00:51]} 53. Qe3 {[%clk 00:00:36]}
{[%emt 00:01:20]} Qf6 {[%clk 00:11:05]} {[%emt 00:00:33]} 54. Re6 {[%clk
00:00:37]} {[%emt 00:00:28]} Qf5 {[%clk 00:10:34]} {[%emt 00:01:00]} 55. Re5
{[%clk 00:00:35]} {[%emt 00:00:32]} Qf4 {[%clk 00:09:58]} {[%emt 00:01:05]} 56.
Qxf4 {[%clk 00:00:34]} {[%emt 00:00:34]} Rxf4 {[%clk 00:09:51]} {[%emt
00:00:35]} 57. Re7+ {[%clk 00:00:58]} {[%emt 00:00:06]} Kg6 {[%clk 00:10:07]}
{[%emt 00:00:13]} 58. Rxb7 {[%clk 00:01:11]} {[%emt 00:00:19]} Rxd4 {[%clk
00:10:26]} {[%emt 00:00:09]} 59. Rb6 {[%clk 00:00:33]} {[%emt 00:01:09]} Rc4
{[%clk 00:10:34]} {[%emt 00:00:22]} 60. b3 {[%clk 00:00:33]} {[%emt 00:00:31]}
Rc3 {[%clk 00:10:02]} {[%emt 00:01:00]} 61. Ra6 {[%clk 00:00:33]} {[%emt
00:00:32]} Kf5 {[%clk 00:09:31]} {[%emt 00:00:58]} 62. Rxa5 {[%clk 00:00:31]}
{[%emt 00:00:34]} Rxb3 {[%clk 00:09:51]} {[%emt 00:00:09]} 63. Ra6 {[%clk
00:00:32]} {[%emt 00:00:31]} Rc3 {[%clk 00:08:10]} {[%emt 00:02:10]} 64. a5
{[%clk 00:00:45]} {[%emt 00:00:17]} Ke4 {[%clk 00:07:38]} {[%emt 00:01:01]} 65.
Ra8 {[%clk 00:00:35]} {[%emt 00:00:41]} c5 {[%clk 00:07:05]} {[%emt 00:01:02]}
66. a6 {[%clk 00:00:54]} {[%emt 00:00:12]} Ra3 {[%clk 00:07:29]} {[%emt
00:00:06]} 67. Kf1 {[%clk 00:00:31]} {[%emt 00:00:52]} c4 {[%clk 00:07:04]}
{[%emt 00:00:55]} 68. a7 {[%clk 00:00:43]} {[%emt 00:00:19]} Kd4 {[%clk
00:07:01]} {[%emt 00:00:31]} 69. Ke2 {[%clk 00:00:37]} {[%emt 00:00:36]} c3
{[%clk 00:05:02]} {[%emt 00:02:29]} 70. f3 {[%clk 00:00:46]} {[%emt 00:00:22]}
Ra2+ {[%clk 00:05:23]} {[%emt 00:00:08]} 71. Ke1 {[%clk 00:00:56]} {[%emt
00:00:21]} Kd3 {[%clk 00:05:06]} {[%emt 00:00:45]} 72. Rd8 {[%clk 00:01:14]}
{[%emt 00:00:13]} c2 {[%clk 00:04:26]} {[%emt 00:01:10]} 73. Rxd5+ {[%clk
00:01:22]} {[%emt 00:00:23]} Kc4 {[%clk 00:04:36]} {[%emt 00:00:18]} 0-1

[Event "Schack-SM 2024: Sverigemastarklassen"]
[Site "Fortnox Arena, Hejaregatan 5, Vaxjo, Sweden"]
[Date "2024.07.03"]
[Round "5.1"]
[White "Semcesen, Daniel"]
[Black "Hillarp Persson, Tiger"]
[Result "0-1"]
[TimeControl "90 minutes for 40 moves + 30 minutes for the rest of the game + 30 seconds per move from move one."]
[WhiteTitle "GM"]
[BlackTitle "GM"]
[WhiteElo "2451"]
[BlackElo "2455"]

1. d4 {[%clk 01:30:30]} {[%emt 00:00:28]} d6 {[%clk 01:29:51]} {[%emt
00:01:11]} 2. Nf3 {[%clk 01:30:05]} {[%emt 00:00:54]} Nf6 {[%clk 01:29:37]}
{[%emt 00:00:45]} 3. Bg5 {[%clk 01:29:42]} {[%emt 00:00:53]} Nbd7 {[%clk
01:29:59]} {[%emt 00:00:09]} 4. Nbd2 {[%clk 01:28:39]} {[%emt 00:01:32]} h6
{[%clk 01:30:17]} {[%emt 00:00:12]} 5. Bh4 {[%clk 01:28:53]} {[%emt 00:00:16]}
g5 {[%clk 01:30:34]} {[%emt 00:00:13]} 6. Bg3 {[%clk 01:29:17]} {[%emt
00:00:05]} Nh5 {[%clk 01:30:59]} {[%emt 00:00:05]} 7. e3 {[%clk 01:28:43]}
{[%emt 00:01:05]} Bg7 {[%clk 01:22:52]} {[%emt 00:08:36]} 8. c3 {[%clk
01:27:27]} {[%emt 00:01:46]} e6 {[%clk 01:15:48]} {[%emt 00:07:34]} 9. Bd3
{[%clk 01:25:17]} {[%emt 00:02:39]} Qe7 {[%clk 01:11:03]} {[%emt 00:05:15]} 10.
Qc2 {[%clk 01:22:41]} {[%emt 00:03:07]} a6 {[%clk 01:07:33]} {[%emt 00:04:01]}
11. O-O-O {[%clk 01:20:06]} {[%emt 00:03:06]} b5 {[%clk 01:05:48]} {[%emt
00:02:14]} 12. Kb1 {[%clk 01:04:59]} {[%emt 00:15:37]} Nxg3 {[%clk 01:00:05]}
{[%emt 00:06:11]} 13. hxg3 {[%clk 01:05:01]} {[%emt 00:00:30]} c5 {[%clk
00:59:40]} {[%emt 00:00:55]} 14. Nh2 {[%clk 00:55:45]} {[%emt 00:09:45]} Bb7
{[%clk 00:43:55]} {[%emt 00:16:16]} 15. Be4 {[%clk 00:50:59]} {[%emt 00:05:16]}
Bxe4 {[%clk 00:42:12]} {[%emt 00:02:13]} 16. Nxe4 {[%clk 00:46:40]} {[%emt
00:04:49]} d5 {[%clk 00:42:03]} {[%emt 00:00:38]} 17. Nxc5 {[%clk 00:45:54]}
{[%emt 00:01:17]} Nxc5 {[%clk 00:42:26]} {[%emt 00:00:06]} 18. dxc5 {[%clk
00:46:16]} {[%emt 00:00:09]} Qxc5 {[%clk 00:42:52]} {[%emt 00:00:04]} 19. e4
{[%clk 00:45:26]} {[%emt 00:01:19]} dxe4 {[%clk 00:37:20]} {[%emt 00:06:03]} 20.
Qxe4 {[%clk 00:45:28]} {[%emt 00:00:28]} Rb8 {[%clk 00:35:48]} {[%emt
00:02:01]} 21. Ng4 {[%clk 00:39:43]} {[%emt 00:06:15]} b4 {[%clk 00:26:00]}
{[%emt 00:10:19]} 22. c4 {[%clk 00:39:18]} {[%emt 00:00:55]} b3 {[%clk
00:26:05]} {[%emt 00:00:25]} 23. a3 {[%clk 00:38:23]} {[%emt 00:01:25]} Rc8
{[%clk 00:10:38]} {[%emt 00:15:58]} 24. Ne3 {[%clk 00:30:42]} {[%emt 00:08:10]}
O-O {[%clk 00:09:51]} {[%emt 00:01:18]} 25. Rd3 {[%clk 00:25:33]} {[%emt
00:05:40]} Qb6 {[%clk 00:05:46]} {[%emt 00:04:34]} 26. Ng4 {[%clk 00:12:42]}
{[%emt 00:13:21]} f5 {[%clk 00:01:46]} {[%emt 00:04:32]} 27. Qe3 {[%clk
00:13:02]} {[%emt 00:00:09]} Qxe3 {[%clk 00:02:08]} {[%emt 00:00:07]} 28. Nxe3
{[%clk 00:13:28]} {[%emt 00:00:04]} Rb8 {[%clk 00:02:06]} {[%emt 00:00:33]} 29.
Rhd1 {[%clk 00:11:48]} {[%emt 00:02:09]} a5 {[%clk 00:01:49]} {[%emt 00:00:48]}
30. Rd6 {[%clk 00:09:56]} {[%emt 00:02:22]} f4 {[%clk 00:01:47]} {[%emt
00:00:32]} 31. gxf4 {[%clk 00:09:30]} {[%emt 00:00:56]} gxf4 {[%clk 00:01:04]}
{[%emt 00:01:13]} 32. Nf1 {[%clk 00:08:37]} {[%emt 00:01:22]} Rbc8 {[%clk
00:01:00]} {[%emt 00:00:36]} 33. Nd2 {[%clk 00:05:59]} {[%emt 00:03:08]} f3
{[%clk 00:01:25]} {[%emt 00:00:04]} 34. gxf3 {[%clk 00:04:08]} {[%emt
00:02:20]} a4 {[%clk 00:01:53]} {[%emt 00:00:03]} 35. Re1 {[%clk 00:03:07]}
{[%emt 00:01:31]} e5 {[%clk 00:01:05]} {[%emt 00:01:18]} 36. Ra6 {[%clk
00:02:03]} {[%emt 00:01:33]} Rfd8 {[%clk 00:01:04]} {[%emt 00:00:31]} 37. Rg1
{[%clk 00:00:45]} {[%emt 00:01:49]} Rxd2 {[%clk 00:01:19]} {[%emt 00:00:15]} 38.
Ra7 {[%clk 00:00:52]} {[%emt 00:00:24]} Kh8 {[%clk 00:01:29]} {[%emt 00:00:19]}
39. Raxg7 {[%clk 00:00:51]} {[%emt 00:00:31]} Rcd8 {[%clk 00:01:16]} {[%emt
00:00:43]} 40. Kc1 {[%clk 00:00:54]} {[%emt 00:00:28]} Rc2+ {[%clk 00:01:16]}
{[%emt 00:00:30]} 41. Kb1 {[%clk 00:01:18]} {[%emt 00:00:07]} Rd1+ {[%clk
00:22:13]} {[%emt 00:09:31]} 42. Rxd1 {[%clk 00:31:32]} {[%emt 00:00:15]} Kxg7
{[%clk 00:22:41]} {[%emt 00:00:03]} 43. Rc1 {[%clk 00:28:15]} {[%emt 00:03:47]}
h5 {[%clk 00:23:01]} {[%emt 00:00:11]} 44. c5 {[%clk 00:26:29]} {[%emt
00:02:15]} Rxc1+ {[%clk 00:16:25]} {[%emt 00:07:07]} 45. Kxc1 {[%clk 00:26:44]}
{[%emt 00:00:13]} Kf7 {[%clk 00:16:48]} {[%emt 00:00:07]} 46. Kd2 {[%clk
00:24:30]} {[%emt 00:02:44]} h4 {[%clk 00:17:00]} {[%emt 00:00:18]} 47. Ke2
{[%clk 00:23:51]} {[%emt 00:01:09]} Ke6 {[%clk 00:17:25]} {[%emt 00:00:06]} 0-1

[Event "Schack-SM 2024: Sverigemastarklassen"]
[Site "Fortnox Arena, Hejaregatan 5, Vaxjo, Sweden"]
[Date "2024.07.03"]
[Round "5.2"]
[White "Sivuk, Vitaly"]
[Black "Seo, Jung Min"]
[Result "1/2-1/2"]
[TimeControl "90 minutes for 40 moves + 30 minutes for the rest of the game + 30 seconds per move from move one."]
[WhiteTitle "GM"]
[BlackTitle "IM"]
[WhiteElo "2569"]
[BlackElo "2442"]

1. d4 {[%clk 01:28:49]} {[%emt 00:00:42]} Nf6 {[%clk 01:31:00]} {[%emt
00:00:01]} 2. c4 {[%clk 01:29:05]} {[%emt 00:00:13]} g6 {[%clk 01:31:28]}
{[%emt 00:00:02]} 3. g3 {[%clk 01:27:44]} {[%emt 00:01:50]} c6 {[%clk
01:21:28]} {[%emt 00:10:31]} 4. Bg2 {[%clk 01:27:10]} {[%emt 00:01:03]} d5
{[%clk 01:21:25]} {[%emt 00:00:34]} 5. cxd5 {[%clk 01:26:36]} {[%emt 00:01:03]}
cxd5 {[%clk 01:21:51]} {[%emt 00:00:05]} 6. Nc3 {[%clk 01:26:58]} {[%emt
00:00:08]} Bg7 {[%clk 01:21:57]} {[%emt 00:00:25]} 7. Nf3 {[%clk 01:27:12]}
{[%emt 00:00:14]} O-O {[%clk 01:22:06]} {[%emt 00:00:21]} 8. Ne5 {[%clk
01:27:28]} {[%emt 00:00:13]} Bf5 {[%clk 01:18:49]} {[%emt 00:03:49]} 9. O-O
{[%clk 01:25:42]} {[%emt 00:02:15]} Ne4 {[%clk 01:17:27]} {[%emt 00:01:52]} 10.
Qb3 {[%clk 01:21:12]} {[%emt 00:05:00]} Nc6 {[%clk 01:17:28]} {[%emt 00:00:30]}
11. Qxd5 {[%clk 01:15:47]} {[%emt 00:05:54]} Nxc3 {[%clk 01:02:34]} {[%emt
00:15:24]} 12. bxc3 {[%clk 01:16:02]} {[%emt 00:00:15]} Qxd5 {[%clk 01:02:59]}
{[%emt 00:00:06]} 13. Bxd5 {[%clk 01:16:26]} {[%emt 00:00:06]} Nxe5 {[%clk
01:03:28]} {[%emt 00:00:01]} 14. dxe5 {[%clk 01:16:46]} {[%emt 00:00:10]} Bxe5
{[%clk 01:03:40]} {[%emt 00:00:18]} 15. Bh6 {[%clk 01:16:46]} {[%emt 00:00:28]}
Rfd8 {[%clk 01:00:30]} {[%emt 00:03:42]} 16. Bxb7 {[%clk 01:05:08]} {[%emt
00:12:07]} Rab8 {[%clk 00:58:30]} {[%emt 00:02:30]} 17. Rad1 {[%clk 01:01:59]}
{[%emt 00:03:40]} Bxc3 {[%clk 00:57:33]} {[%emt 00:01:28]} 18. Rxd8+ {[%clk
00:58:37]} {[%emt 00:03:51]} Rxd8 {[%clk 00:58:01]} {[%emt 00:00:02]} 19. Kg2
{[%clk 00:58:42]} {[%emt 00:00:25]} Be6 {[%clk 00:46:38]} {[%emt 00:11:54]} 20.
a4 {[%clk 00:57:55]} {[%emt 00:01:17]} a5 {[%clk 00:45:53]} {[%emt 00:01:15]}
21. Rc1 {[%clk 00:55:38]} {[%emt 00:02:46]} Bb4 {[%clk 00:45:52]} {[%emt
00:00:30]} 22. e4 {[%clk 00:49:57]} {[%emt 00:06:11]} f6 {[%clk 00:45:34]}
{[%emt 00:00:49]} 23. h4 {[%clk 00:50:10]} {[%emt 00:00:15]} Kf7 {[%clk
00:45:45]} {[%emt 00:00:19]} 24. Be3 {[%clk 00:50:02]} {[%emt 00:00:39]} h5
{[%clk 00:45:26]} {[%emt 00:00:49]} 25. Ba6 {[%clk 00:49:09]} {[%emt 00:01:23]}
Ra8 {[%clk 00:43:10]} {[%emt 00:02:46]} 26. Bb5 {[%clk 00:42:58]} {[%emt
00:06:43]} Rc8 {[%clk 00:41:05]} {[%emt 00:02:32]} 27. Rxc8 {[%clk 00:41:41]}
{[%emt 00:01:49]} Bxc8 {[%clk 00:41:34]} 28. Bc4+ {[%clk 00:40:52]} {[%emt
00:01:20]} Ke8 {[%clk 00:41:15]} {[%emt 00:00:49]} 29. Bb5+ {[%clk 00:41:06]}
{[%emt 00:00:17]} Kf7 {[%clk 00:41:41]} {[%emt 00:00:04]} 30. Bc4+ {[%clk
00:41:33]} {[%emt 00:00:03]} Ke8 {[%clk 00:42:08]} {[%emt 00:00:03]} 31. Bb5+
{[%clk 00:41:59]} {[%emt 00:00:03]} 1/2-1/2

[Event "Schack-SM 2024: Sverigemastarklassen"]
[Site "Fortnox Arena, Hejaregatan 5, Vaxjo, Sweden"]
[Date "2024.07.03"]
[Round "5.3"]
[White "Lokander, Martin"]
[Black "Galperin, Platon"]
[Result "1-0"]
[TimeControl "90 minutes for 40 moves + 30 minutes for the rest of the game + 30 seconds per move from move one."]
[WhiteTitle "IM"]
[BlackTitle "GM"]
[WhiteElo "2474"]
[BlackElo "2551"]

1. d4 {[%clk 01:30:56]} {[%emt 00:00:04]} Nf6 {[%clk 01:26:31]} {[%emt
00:04:27]} 2. c4 {[%clk 01:31:21]} {[%emt 00:00:07]} b6 {[%clk 01:26:59]}
{[%emt 00:00:03]} 3. Nc3 {[%clk 01:29:06]} {[%emt 00:02:44]} Bb7 {[%clk
01:25:05]} {[%emt 00:02:24]} 4. Qc2 {[%clk 01:29:27]} {[%emt 00:00:09]} Nc6
{[%clk 01:25:31]} {[%emt 00:00:06]} 5. Nf3 {[%clk 01:29:52]} {[%emt 00:00:03]}
Nb4 {[%clk 01:25:58]} {[%emt 00:00:03]} 6. Qb1 {[%clk 01:26:08]} {[%emt
00:04:15]} Bxf3 {[%clk 01:26:23]} {[%emt 00:00:06]} 7. exf3 {[%clk 01:26:35]}
{[%emt 00:00:03]} e6 {[%clk 01:26:47]} {[%emt 00:00:06]} 8. a3 {[%clk
01:24:42]} {[%emt 00:02:22]} Nc6 {[%clk 01:27:12]} {[%emt 00:00:04]} 9. Be3
{[%clk 01:25:08]} {[%emt 00:00:04]} g6 {[%clk 01:27:36]} {[%emt 00:00:06]} 10.
Be2 {[%clk 01:09:07]} {[%emt 00:16:32]} Bg7 {[%clk 01:27:57]} {[%emt 00:00:09]}
11. O-O {[%clk 01:09:29]} {[%emt 00:00:07]} Ne7 {[%clk 01:28:10]} {[%emt
00:00:16]} 12. g4 {[%clk 01:06:54]} {[%emt 00:03:06]} d5 {[%clk 01:21:54]}
{[%emt 00:06:46]} 13. b3 {[%clk 01:05:45]} {[%emt 00:01:40]} c6 {[%clk
01:21:18]} {[%emt 00:01:06]} 14. Rd1 {[%clk 01:04:02]} {[%emt 00:02:12]} h5
{[%clk 01:21:06]} {[%emt 00:00:42]} 15. Qc1 {[%clk 00:54:30]} {[%emt 00:10:03]}
Qd7 {[%clk 00:59:34]} {[%emt 00:22:01]} 16. h3 {[%clk 00:52:18]} {[%emt
00:02:41]} O-O {[%clk 00:44:11]} {[%emt 00:15:54]} 17. Kg2 {[%clk 00:51:37]}
{[%emt 00:01:11]} Rac8 {[%clk 00:44:35]} {[%emt 00:00:06]} 18. a4 {[%clk
00:46:19]} {[%emt 00:05:48]} c5 {[%clk 00:37:07]} {[%emt 00:07:58]} 19. a5
{[%clk 00:28:46]} {[%emt 00:18:04]} cxd4 {[%clk 00:19:51]} {[%emt 00:17:46]} 20.
Bxd4 {[%clk 00:28:57]} {[%emt 00:00:19]} bxa5 {[%clk 00:19:12]} {[%emt
00:01:09]} 21. Qf4 {[%clk 00:28:09]} {[%emt 00:01:18]} Nh7 {[%clk 00:19:35]}
{[%emt 00:00:06]} 22. Bxg7 {[%clk 00:28:19]} {[%emt 00:00:21]} Kxg7 {[%clk
00:20:01]} {[%emt 00:00:05]} 23. cxd5 {[%clk 00:28:07]} {[%emt 00:00:41]} exd5
{[%clk 00:17:41]} {[%emt 00:02:48]} 24. Rxa5 {[%clk 00:26:34]} {[%emt
00:02:05]} Qe6 {[%clk 00:18:07]} {[%emt 00:00:04]} 25. Ra6 {[%clk 00:23:16]}
{[%emt 00:03:48]} Rc6 {[%clk 00:18:27]} {[%emt 00:00:10]} 26. Qd4+ {[%clk
00:22:39]} {[%emt 00:01:06]} Nf6 {[%clk 00:13:57]} {[%emt 00:05:01]} 27. g5
{[%clk 00:20:36]} {[%emt 00:02:34]} Rxa6 {[%clk 00:14:20]} {[%emt 00:00:07]} 28.
gxf6+ {[%clk 00:20:57]} {[%emt 00:00:07]} Qxf6 {[%clk 00:14:30]} {[%emt
00:00:20]} 29. Bxa6 {[%clk 00:21:19]} {[%emt 00:00:09]} Qxd4 {[%clk 00:14:05]}
{[%emt 00:00:54]} 30. Rxd4 {[%clk 00:21:44]} {[%emt 00:00:03]} Rb8 {[%clk
00:14:19]} {[%emt 00:00:17]} 31. Nxd5 {[%clk 00:20:37]} {[%emt 00:01:36]} Nxd5
{[%clk 00:14:45]} {[%emt 00:00:05]} 32. Rxd5 {[%clk 00:21:03]} {[%emt
00:00:03]} Rxb3 {[%clk 00:15:11]} {[%emt 00:00:05]} 33. Rd7 {[%clk 00:21:26]}
{[%emt 00:00:07]} Rb4 {[%clk 00:15:37]} {[%emt 00:00:03]} 34. Rxa7 {[%clk
00:21:22]} {[%emt 00:00:34]} Ra4 {[%clk 00:15:58]} {[%emt 00:00:10]} 35. Ra8
{[%clk 00:21:48]} {[%emt 00:00:05]} Kh6 {[%clk 00:12:08]} {[%emt 00:04:19]} 36.
Bb7 {[%clk 00:21:59]} {[%emt 00:00:19]} Rd4 {[%clk 00:12:30]} {[%emt 00:00:08]}
37. Bc6 {[%clk 00:21:06]} {[%emt 00:01:22]} Rd6 {[%clk 00:12:20]} {[%emt
00:00:41]} 38. Be8 {[%clk 00:20:35]} {[%emt 00:01:01]} Rf6 {[%clk 00:12:28]}
{[%emt 00:00:21]} 39. Ra7 {[%clk 00:20:42]} {[%emt 00:00:24]} Kg7 {[%clk
00:12:53]} {[%emt 00:00:04]} 40. h4 {[%clk 00:20:21]} {[%emt 00:00:52]} Kf8
{[%clk 00:13:08]} {[%emt 00:00:15]} 41. Ba4 {[%clk 00:19:53]} {[%emt 00:00:57]}
Rb6 {[%clk 00:13:20]} {[%emt 00:00:19]} 42. Bc2 {[%clk 00:19:41]} {[%emt
00:00:40]} Kg7 {[%clk 00:07:51]} {[%emt 00:06:00]} 43. Be4 {[%clk 00:19:12]}
{[%emt 00:01:00]} Rb5 {[%clk 00:08:17]} {[%emt 00:00:04]} 44. Rd7 {[%clk
00:18:45]} {[%emt 00:00:57]} Re5 {[%clk 00:08:14]} {[%emt 00:00:33]} 45. Bd5
{[%clk 00:18:43]} {[%emt 00:00:31]} Rf5 {[%clk 00:08:38]} {[%emt 00:00:07]} 46.
Kg3 {[%clk 00:18:23]} {[%emt 00:00:50]} 1-0